bitfinex-derivatives/quotes_ETHF0:USTF0_20230403
["timestamp","ask_amount","ask_price","bid_price","bid_amount"]
[1680510529461,2.204,1815.3,1815.2,0.13416893]
[1680510529859,3.204,1815.3,1815.1,4.20818477]
[1680510530061,5.4058,1815.2,1814.7,3.2078]
[1680510530367,2.204,1814.9,1814.8,0.13388855]
[1680510534763,3.8136119,1815.2,1814.8,0.13388855]
[1680510534958,3.8136119,1815.2,1815.0,4.20818477]
[1680510536468,2.198,1815.2,1815.0,4.20818477]
[1680510536669,2.204,1815.1,1815.0,4.20818477]
[1680510537367,2.204,1815.1,1814.8,0.13388855]
[1680510537562,2.194,1814.9,1814.7,4.20818477]
[1680510537758,2.204,1814.8,1814.7,4.20818477]
[1680510538164,4.2078,1815.2,1814.7,4.20818477]
[1680510538165,2.204,1815.0,1814.7,4.20818477]
[1680510538365,2.204,1815.0,1814.8,4.20818477]
[1680510541075,5.4118,1815.0,1814.8,4.20818477]
[1680510541665,2.204,1814.9,1814.8,4.20818477]
[1680510541977,3.204,1814.9,1814.6,4.20818477]
[1680510542268,3.204,1814.9,1814.8,4.20818477]
[1680510542675,2.204,1814.9,1814.8,4.20818477]
[1680510542869,5.4118,1815.0,1814.8,4.20818477]
[1680510543568,5.4118,1815.0,1814.9,0.13458394]
[1680510543765,5.4118,1815.0,1814.8,4.20818477]
[1680510544268,2.198,1814.9,1814.8,4.20818477]
[1680510544469,3.198,1814.9,1814.6,4.20818477]
[1680510544979,3.2078,1814.8,1814.6,4.20818477]
[1680510547378,2.198,1814.9,1814.8,4.20818477]
[1680510548470,2.198,1814.9,1814.2,0.54609449]
[1680510548471,2.188,1814.8,1814.2,0.54609449]
[1680510548674,2.194,1814.3,1814.1,3.2078]
[1680510551681,1.0,1814.6,1814.1,3.2078]
[1680510551682,2.204,1814.5,1814.1,3.2078]
[1680510552070,3.204,1814.6,1814.1,5.3998]
[1680510552475,3.204,1814.6,1814.3,3.2078]
[1680510552876,2.204,1814.6,1814.3,3.2078]
[1680510554174,2.186,1814.4,1814.1,3.2078]
[1680510556084,2.186,1814.4,1814.3,3.2078]
[1680510557287,1.0,1814.7,1814.3,3.2078]
[1680510557288,2.186,1814.6,1814.3,3.2078]
[1680510557680,2.186,1814.6,1814.1,5.3958]
[1680510558185,1.0,1814.5,1814.1,5.3958]
[1680510558382,2.198,1814.4,1814.1,3.2078]
[1680510559187,1.0,1814.3,1814.1,3.2078]
[1680510559585,2.198,1814.4,1814.1,3.2078]
[1680510561586,2.204,1814.6,1814.3,3.2078]
[1680510564094,2.204,1814.6,1814.5,3.2078]
[1680510565392,2.204,1814.8,1814.5,3.2078]
[1680510569592,2.204,1814.6,1814.1,2.192]
[1680510571296,2.204,1814.6,1814.2,3.2078]
[1680510572099,1.093,1814.4,1814.2,3.2078]
[1680510576906,1.102,1814.3,1814.2,3.2078]
[1680510577408,1.093,1814.4,1814.2,3.2078]
[1680510579609,1.092,1814.3,1814.2,3.2078]
[1680510584015,1.093,1814.4,1814.2,3.2078]
[1680510586116,0.04711939,1814.3,1814.2,3.2078]
[1680510586419,1.093,1814.4,1814.2,3.2078]
[1680510588620,0.04336871,1814.3,1814.2,3.2078]
[1680510588825,1.093,1814.4,1814.2,3.2078]
[1680510592016,1.093,1814.3,1814.2,3.2078]
[1680510595825,1.094,1814.5,1814.2,3.2078]
[1680510596025,1.094,1814.5,1814.4,3.2078]
[1680510596728,1.102,1814.7,1814.4,3.2078]
[1680510597021,1.102,1814.7,1814.6,3.2078]
[1680510599326,1.73998351,1815.1,1814.6,4.3098]
[1680510599524,1.73998351,1815.1,1814.4,6.07916754]
[1680510599525,3.39356468,1815.2,1815.0,3.2078]
[1680510599725,1.093,1815.2,1815.0,3.2078]
[1680510600031,1.093,1815.2,1815.1,0.18047516]
[1680510600227,3.72642171,1815.2,1815.1,0.18047516]
[1680510600732,1.093,1815.2,1815.1,0.18047516]
[1680510600926,1.73998351,1815.3,1815.1,0.18047516]
[1680510601134,4.51985877,1815.4,1815.1,0.18047516]
[1680510601331,2.63313475,1815.3,1815.1,0.18047516]
[1680510601531,2.77987526,1815.4,1815.2,3.2078]
[1680510602123,1.67787526,1815.4,1815.2,3.2078]
[1680510602430,1.094,1815.5,1815.2,3.2078]
[1680510602832,2.77622717,1815.5,1815.4,3.2078]
[1680510603028,3.72610464,1815.5,1815.4,3.2078]
[1680510603624,3.72610464,1815.5,1815.2,3.2078]
[1680510603831,1.094,1815.5,1815.2,3.2078]
[1680510604740,1.094,1815.5,1815.4,3.2078]
[1680510604935,3.72611306,1815.5,1815.2,3.2078]
[1680510605135,1.094,1815.5,1815.4,3.2078]
[1680510606140,1.094,1815.5,1815.4,3.48027343]
[1680510606435,0.55637198,1815.8,1815.4,3.48027343]
[1680510606436,2.75159889,1815.7,1815.4,3.48027343]
[1680510606742,1.64959889,1815.7,1815.6,4.3098]
[1680510607040,1.64959889,1815.7,1815.4,0.27247343]
[1680510607041,1.102,1815.8,1815.4,1.37447343]
[1680510608336,2.102,1815.8,1815.4,1.37447343]
[1680510608940,1.093,1815.5,1815.4,0.27247343]
[1680510609138,1.093,1815.5,1815.1,4.3098]
[1680510609635,1.093,1815.5,1815.2,1.0]
[1680510610033,1.093,1815.5,1815.3,3.2078]
[1680510610439,1.102,1815.7,1815.3,4.3098]
[1680510613634,1.102,1815.7,1815.5,3.2078]
[1680510614237,1.102,1815.9,1815.5,4.3098]
[1680510614437,1.102,1815.9,1815.7,3.2078]
[1680510615038,1.102,1815.9,1815.7,8.7178]
[1680510615039,0.0001,1815.9,1815.7,8.7178]
[1680510615343,1.102,1816.4,1815.8,1.102]
[1680510615543,1.102,1816.4,1816.0,4.3088]
[1680510615838,1.102,1816.4,1816.1,0.45738635]
[1680510616040,1.093,1816.2,1816.1,0.45738635]
[1680510616235,2.187,1816.2,1816.1,0.45738635]
[1680510616440,2.187,1816.2,1816.0,3.2078]
[1680510616738,1.102,1816.1,1816.0,3.2078]
[1680510616946,1.093,1816.2,1816.0,3.2078]
[1680510617143,1.102,1816.1,1815.8,3.2078]
[1680510617447,1.102,1815.9,1815.8,3.2078]
[1680510617946,1.102,1815.9,1815.5,3.2078]
[1680510618542,1.102,1815.9,1815.4,1.102]
[1680510618742,4.3098,1815.9,1815.4,1.102]
[1680510618943,1.093,1815.6,1815.3,3.2078]
[1680510621246,2.092,1815.8,1815.4,1.102]
[1680510621456,1.092,1815.8,1815.4,1.102]
[1680510621649,1.0,1815.7,1815.4,1.102]
[1680510621856,1.0,1815.7,1815.0,2.096]
[1680510621857,3.2078,1815.9,1815.6,1.101]
[1680510622246,3.2078,1815.9,1815.6,1.102]
[1680510624148,1.092,1816.0,1815.7,3.2078]
[1680510625453,1.092,1816.0,1815.6,1.102]
[1680510625849,2.092,1816.0,1815.6,1.102]
[1680510626049,1.102,1815.8,1815.4,4.3098]
[1680510627552,1.102,1815.5,1815.3,0.55928315]
[1680510627757,1.102,1815.5,1815.2,3.2078]
[1680510628653,1.102,1815.5,1815.0,4.3038]
[1680510628856,4.3098,1815.5,1815.0,4.3038]
[1680510630055,2.102,1815.2,1814.8,4.3098]
[1680510630648,1.102,1815.2,1814.8,4.3098]
[1680510630844,1.102,1815.2,1814.9,0.09976953]
[1680510631052,1.102,1815.2,1814.8,4.3098]
[1680510632453,1.0,1815.1,1814.8,4.3098]
[1680510632670,1.0,1815.1,1814.4,6.71387005]
[1680510632671,1.53848431,1815.8,1815.0,5.4118]
[1680510632852,1.53848431,1815.8,1815.3,1.102]
[1680510633246,1.092,1815.7,1815.3,1.102]
[1680510633459,7.36356338,1815.7,1815.3,1.102]
[1680510634464,7.36356338,1815.7,1815.4,3.2078]
[1680510634652,1.092,1815.7,1815.4,3.2078]
[1680510635459,4.8772,1815.9,1815.4,3.2078]
[1680510635654,2.18402129,1816.0,1815.6,3.2078]
[1680510635848,3.2078,1816.1,1815.6,3.2078]
[1680510636048,1.102,1816.0,1815.6,3.2078]
[1680510636363,6.94361201,1816.0,1815.6,3.2078]
[1680510636652,1.102,1816.0,1815.6,3.2078]
[1680510636855,5.80606109,1815.9,1815.6,3.2078]
[1680510638661,1.102,1816.0,1815.6,3.2078]
[1680510638962,1.102,1815.7,1815.4,3.2078]
[1680510639260,5.3098,1815.9,1815.4,3.2078]
[1680510639261,1.102,1815.6,1815.4,3.2078]
[1680510639656,1.092,1815.7,1815.4,3.2078]
[1680510640251,1.092,1815.9,1815.6,3.2078]
[1680510640458,2.18198373,1816.0,1815.8,1.102]
[1680510640657,1.102,1816.2,1815.8,1.102]
[1680510641160,1.102,1816.2,1815.9,0.30450511]
[1680510641358,2.102,1816.2,1815.8,1.102]
[1680510641660,6.16248541,1816.1,1815.9,0.29933653]
[1680510641859,2.102,1816.2,1815.8,4.3098]
[1680510641860,1.102,1816.2,1815.8,4.3098]
[1680510642062,1.094,1816.1,1815.9,0.34868695]
[1680510643965,5.79435982,1816.0,1815.9,0.34868695]
[1680510644160,4.94778351,1816.3,1815.9,0.34868695]
[1680510644356,2.62954652,1816.2,1815.9,1.102]
[1680510644660,1.093,1816.1,1815.8,3.2078]
[1680510644861,1.093,1816.1,1815.5,4.3088]
[1680510644862,1.092,1815.9,1815.5,4.3088]
[1680510645063,1.093,1815.6,1815.2,3.2078]
[1680510645251,1.094,1815.4,1815.2,3.2078]
[1680510645657,1.102,1815.6,1815.2,4.3098]
[1680510645857,1.102,1815.6,1815.4,3.2078]
[1680510646863,9.78397029,1815.5,1814.6,5.206]
[1680510647064,1.1,1814.8,1814.5,3.2078]
[1680510647259,1.1,1814.6,1814.5,2.88476831]
[1680510647564,4.2998,1814.6,1814.2,0.56916754]
[1680510647763,1.102,1814.4,1814.1,0.56916754]
[1680510648065,4.3098,1814.4,1814.1,0.56916754]
[1680510648264,1.102,1814.4,1814.1,0.56916754]
[1680510648565,4.3098,1814.6,1814.2,1.093]
[1680510648763,4.3098,1814.6,1814.2,4.3008]
[1680510648764,1.102,1814.6,1814.2,4.3008]
[1680510649760,3.2078,1814.4,1814.2,1.093]
[1680510650160,4.3098,1814.4,1814.0,1.097]
[1680510650760,1.1,1814.7,1814.3,4.3088]
[1680510651255,4.3078,1814.7,1814.3,4.3088]
[1680510651464,1.102,1814.5,1814.1,4.3008]
[1680510651960,1.102,1814.5,1814.1,1.093]
[1680510652167,5.4098,1814.5,1814.0,2.192]
[1680510652357,2.19,1814.3,1813.9,3.77696754]
[1680510652760,2.19,1814.3,1813.9,3.2078]
[1680510652959,2.19,1814.3,1814.1,3.2078]
[1680510654559,2.19,1814.3,1813.9,3.2078]
[1680510654761,0.21080402,1814.2,1813.9,3.2078]
[1680510654968,2.40080402,1814.2,1813.9,3.2078]
[1680510655663,0.21080402,1814.2,1813.9,5.4118]
[1680510655863,2.202,1814.4,1813.9,5.4118]
[1680510656562,2.202,1814.4,1814.1,3.2078]
[1680510657167,2.202,1814.4,1813.9,5.4118]
[1680510657371,3.2078,1814.3,1813.9,5.4118]
[1680510658676,2.202,1814.4,1813.9,5.4118]
[1680510658867,3.41855019,1814.3,1813.9,5.4118]
[1680510659062,0.21075019,1814.3,1813.9,5.4118]
[1680510659372,2.183,1814.2,1813.9,3.2078]
[1680510660964,0.21072469,1814.1,1813.9,3.2078]
[1680510661164,2.183,1814.2,1813.9,3.2078]
[1680510661469,2.183,1814.2,1813.7,2.193]
[1680510661470,5.4118,1814.0,1813.7,3.2078]
[1680510661663,2.204,1813.9,1813.6,0.15194747]
[1680510662275,2.41471845,1814.1,1813.6,2.35594747]
[1680510662771,2.204,1813.9,1813.7,3.2078]
[1680510663073,2.41471845,1814.1,1813.7,3.2078]
[1680510664069,0.21071845,1814.1,1813.7,5.4008]
[1680510664468,2.202,1814.2,1813.7,5.4008]
[1680510664773,2.204,1814.0,1813.7,3.2078]
[1680510666066,2.204,1814.0,1813.6,0.15194747]
[1680510666268,2.204,1814.0,1813.5,5.4118]
[1680510666976,2.19,1813.6,1813.5,3.2078]
[1680510667271,4.2078,1813.9,1813.5,3.2078]
[1680510667570,3.2078,1814.1,1813.5,3.2078]
[1680510667765,6.4078,1814.3,1813.5,3.2078]
[1680510668070,2.19,1813.8,1813.5,3.2078]
[1680510669071,2.202,1813.6,1813.5,3.2078]
[1680510669877,2.202,1813.6,1813.3,3.2078]
[1680510671276,1.0,1813.8,1813.3,3.2078]
[1680510671478,3.2078,1813.9,1813.3,3.2078]
[1680510671671,2.188,1813.6,1813.3,3.2078]
[1680510671868,5.49480372,1814.3,1813.6,0.15194458]
[1680510672073,0.54111556,1814.5,1814.1,5.4008]
[1680510672271,0.33936998,1814.2,1814.1,5.4008]
[1680510672574,2.204,1814.6,1814.1,5.4008]
[1680510672773,2.204,1814.6,1814.3,3.2078]
[1680510673384,2.204,1814.5,1814.3,3.2078]
[1680510673679,2.204,1814.5,1814.1,3.2078]
[1680510676074,0.29275558,1814.4,1814.1,3.2078]
[1680510676779,3.2078,1814.7,1814.3,3.2078]
[1680510676976,2.188,1814.6,1814.3,3.2078]
[1680510678678,2.204,1814.4,1814.3,3.2078]
[1680510679075,2.204,1814.4,1814.0,3.2078]
[1680510679277,2.204,1814.2,1813.8,3.2078]
[1680510679673,2.204,1814.0,1813.6,3.35974458]
[1680510680276,0.2934424,1813.9,1813.6,3.35974458]
[1680510680575,0.2934424,1813.9,1813.8,3.2078]
[1680510681688,3.188,1814.2,1813.8,3.2078]
[1680510682376,1.0,1814.2,1813.8,5.3908]
[1680510682781,2.204,1814.3,1813.8,5.3908]
[1680510683679,2.204,1814.3,1814.0,3.2078]
[1680510685586,2.188,1814.1,1813.8,3.2078]
[1680510686080,5.3958,1814.1,1813.6,5.56374458]
[1680510686286,2.19,1813.9,1813.6,3.35974458]
[1680510686879,1.0,1813.8,1813.6,0.15194458]
[1680510687080,2.204,1813.7,1813.6,0.15194458]
[1680510691188,2.50210608,1813.7,1813.6,0.15194458]
[1680510691390,0.29810608,1813.7,1813.6,0.15194458]
[1680510691779,2.183,1813.9,1813.6,0.15194458]
[1680510691990,4.4196376,1814.0,1813.6,2.35594458]
[1680510692193,2.204,1814.0,1813.6,2.35594458]
[1680510692383,2.204,1814.0,1813.7,3.2078]
[1680510692904,0.56109378,1814.0,1813.7,5.4118]
[1680510693107,3.204,1814.2,1813.7,5.4118]
[1680510693699,2.204,1814.2,1813.7,5.4118]
[1680510693900,2.204,1814.2,1813.9,3.2078]
[1680510695003,6.9252,1814.4,1813.9,5.4118]
[1680510695203,2.204,1814.4,1813.9,5.4118]
[1680510695605,2.204,1814.4,1814.1,3.2078]
[1680510700906,0.53954867,1814.4,1814.3,3.2078]
[1680510701108,2.188,1814.6,1814.3,3.2078]
[1680510702012,7.0658317,1814.7,1814.3,3.2078]
[1680510703311,3.8580317,1814.7,1814.3,3.2078]
[1680510703911,2.188,1814.8,1814.5,3.2078]
[1680510704313,1.62930251,1814.9,1814.7,3.2078]
[1680510704511,3.183,1814.8,1814.4,3.2078]
[1680510704717,2.188,1814.6,1814.4,3.2078]
[1680510705213,2.188,1814.6,1814.2,3.2078]
[1680510706117,1.0,1814.5,1814.2,3.2078]
[1680510706319,3.34835761,1814.5,1814.2,3.2078]
[1680510706706,0.14635761,1814.5,1814.2,3.2078]
[1680510706911,0.14635761,1814.5,1814.4,3.2078]
[1680510708015,0.53992087,1814.7,1814.4,3.2078]
[1680510708208,3.204,1814.8,1814.4,3.2078]
[1680510708911,2.204,1814.8,1814.4,3.2078]
[1680510709215,2.204,1814.8,1814.6,3.2078]
[1680510709518,2.75808279,1814.8,1814.6,3.2078]
[1680510711722,2.204,1814.7,1814.6,3.2078]
[1680510712016,2.204,1814.7,1814.4,3.2078]
[1680510712219,2.202,1814.6,1814.4,3.2078]
[1680510712419,1.0,1814.5,1814.1,5.4118]
[1680510713025,2.202,1814.6,1814.1,5.4118]
[1680510713523,2.202,1814.2,1813.8,3.2078]
[1680510713717,2.204,1814.0,1813.8,3.2078]
[1680510714919,2.202,1814.2,1813.8,3.2078]
[1680510715120,2.202,1814.2,1814.0,3.2078]
[1680510716122,3.183,1814.6,1814.1,2.204]
[1680510716327,3.183,1814.6,1814.3,3.2078]
[1680510716524,2.183,1814.6,1814.3,3.2078]
[1680510716725,2.183,1814.6,1814.5,3.2078]
[1680510717129,1.102,1814.6,1814.5,3.2078]
[1680510718024,1.102,1814.8,1814.5,3.2078]
[1680510718531,2.102,1814.8,1814.5,3.2078]
[1680510718728,1.102,1814.6,1814.2,4.3098]
[1680510719029,1.102,1814.6,1814.4,3.2078]
[1680510719226,1.102,1814.5,1814.4,3.2078]
[1680510719729,1.093,1814.6,1814.4,3.2078]
[1680510720526,1.093,1814.6,1814.2,1.102]
[1680510720839,1.093,1814.6,1814.3,3.2078]
[1680510721123,0.14481446,1814.5,1814.3,3.2078]
[1680510721825,0.14481446,1814.5,1814.4,1.095]
[1680510722133,0.14481446,1814.5,1814.4,2.095]
[1680510722332,1.102,1814.8,1814.4,1.095]
[1680510722535,1.6484777,1814.9,1814.6,3.2078]
[1680510722734,1.091,1814.9,1814.6,3.2078]
[1680510722931,1.091,1814.9,1814.8,3.2078]
[1680510723229,1.63419878,1814.9,1814.8,3.2078]
[1680510726729,1.63419878,1814.9,1814.6,3.2078]
[1680510726933,1.63419878,1814.9,1814.8,3.2078]
[1680510727133,2.74419878,1814.9,1814.8,3.2078]
[1680510727432,0.54319878,1814.9,1814.8,3.2078]
[1680510727731,4.86112777,1815.1,1814.8,3.2078]
[1680510728535,0.04479296,1815.0,1814.8,3.2078]
[1680510728938,2.201,1814.9,1814.8,3.2078]
[1680510730336,2.204,1814.9,1814.4,3.2078]
[1680510730529,2.201,1814.6,1814.4,3.20122193]
[1680510731434,0.05837998,1814.5,1814.4,3.20122193]
[1680510732641,2.198,1814.7,1814.4,3.20122193]
[1680510736041,0.05682562,1814.6,1814.4,3.20122193]
[1680510736342,2.198,1814.7,1814.4,3.20122193]
[1680510737947,2.198,1814.7,1814.6,3.2078]
[1680510739249,2.187,1814.7,1814.6,3.2078]
[1680510739636,2.187,1814.7,1814.2,3.2078]
[1680510739842,2.198,1814.6,1814.4,3.2078]
[1680510740943,2.187,1815.0,1814.5,2.204]
[1680510741140,2.187,1815.0,1814.7,3.2078]
[1680510741647,2.187,1815.0,1814.5,5.4118]
[1680510742042,2.195,1814.9,1814.5,3.2078]
[1680510742942,2.195,1814.9,1814.7,3.2078]
[1680510744744,2.19477631,1815.1,1814.7,3.2078]
[1680510745049,2.74054125,1815.3,1814.9,3.2078]
[1680510745849,4.36168015,1815.3,1814.9,3.2078]
[1680510746646,5.36168015,1815.3,1814.9,3.2078]
[1680510746849,4.8081389,1815.3,1814.9,3.2078]
[1680510747950,4.8081389,1815.3,1815.1,3.2078]
[1680510748151,3.8081389,1815.3,1815.1,3.2078]
[1680510749645,1.6211389,1815.3,1815.1,3.2078]
[1680510749847,2.198,1815.5,1815.1,3.2078]
[1680510750045,3.198,1815.5,1815.1,3.2078]
[1680510750240,4.85581526,1815.5,1815.1,3.2078]
[1680510750441,2.195,1815.3,1815.1,3.2078]
[1680510750649,4.85881526,1815.5,1815.1,3.2078]
[1680510750851,4.85881526,1815.5,1815.3,3.2078]
[1680510753651,1.65781526,1815.5,1815.3,3.2078]
[1680510753845,2.74262745,1815.7,1815.3,3.2078]
[1680510754249,3.74262745,1815.7,1815.3,3.2078]
[1680510756051,1.0,1815.6,1815.3,3.2078]
[1680510757052,5.40098577,1815.7,1815.3,3.2078]
[1680510758061,5.40098577,1815.7,1815.5,3.2078]
[1680510758359,5.40098577,1815.7,1815.3,3.2078]
[1680510759764,4.40098577,1815.7,1815.3,3.2078]
[1680510760664,4.40098577,1815.7,1815.5,3.2078]
[1680510761362,4.40098577,1815.7,1815.6,0.18268713]
[1680510761565,4.40098577,1815.7,1815.5,3.2078]
[1680510762369,2.204,1815.6,1815.2,3.2078]
[1680510762559,2.204,1815.6,1815.1,2.194]
[1680510762765,1.0,1815.5,1815.3,0.18270755]
[1680510763071,1.0,1815.5,1815.1,2.194]
[1680510763461,2.204,1815.6,1815.2,3.2078]
[1680510764471,2.21743393,1815.8,1815.4,5.4118]
[1680510764770,18.20460691,1815.9,1815.4,5.4118]
[1680510764978,5.03272501,1815.9,1815.4,5.4118]
[1680510765172,2.7541181,1815.9,1815.4,5.4118]
[1680510765384,2.20437561,1815.9,1815.7,2.198]
[1680510765573,2.204,1816.1,1815.7,2.198]
[1680510765768,3.204,1816.1,1815.7,2.198]
[1680510766278,3.204,1816.1,1815.8,3.2078]
[1680510767078,1.0,1816.0,1815.8,3.2078]
[1680510767279,1.0,1816.0,1815.9,0.34816749]
[1680510767573,3.187,1816.0,1815.8,3.2078]
[1680510769181,2.187,1816.0,1815.8,3.2078]
[1680510771278,1.0,1815.9,1815.5,3.2078]
[1680510772378,1.0,1815.9,1815.4,2.194]
[1680510772574,2.204,1815.6,1815.4,3.2078]
[1680510774774,2.204,1815.9,1815.4,5.3988]
[1680510775083,2.204,1815.9,1815.6,3.2078]
[1680510775477,3.19690312,1816.1,1815.7,2.204]
[1680510775478,5.39490312,1816.1,1815.7,2.204]
[1680510775777,4.39490312,1816.1,1815.7,2.204]
[1680510776176,4.39490312,1816.1,1815.8,3.2078]
[1680510778279,2.204,1815.9,1815.8,3.2078]
[1680510778584,2.204,1815.9,1815.5,3.2078]
[1680510779182,2.204,1815.9,1815.7,3.2078]
[1680510780492,4.40090312,1816.1,1815.7,3.2078]
[1680510780777,2.204,1816.1,1815.9,3.2078]
[1680510782783,2.76671582,1816.1,1815.9,3.2078]
[1680510786692,0.56271582,1816.1,1815.9,5.4118]
[1680510786987,8.71504185,1816.6,1815.9,5.4118]
[1680510787288,4.77214185,1816.6,1816.3,3.2078]
[1680510787589,1.095,1816.4,1816.3,3.2078]
[1680510789484,1.101,1816.4,1816.3,3.2078]
[1680510789988,3.17657039,1816.6,1816.3,3.2078]
[1680510790185,3.17657039,1816.6,1816.2,3.2078]
[1680510790590,1.1,1816.4,1816.3,0.42938729]
[1680510790986,1.095,1816.4,1816.3,0.42938729]
[1680510791795,1.095,1816.4,1816.2,3.2078]
[1680510791985,3.17657039,1816.6,1816.2,3.2078]
[1680510792485,3.17657039,1816.6,1816.0,3.2078]
[1680510792486,1.101,1816.3,1816.0,3.2078]
[1680510792792,1.095,1816.1,1816.0,3.2078]
[1680510793493,1.094,1816.0,1815.5,5.0]
[1680510793685,1.101,1815.6,1815.4,3.2078]
[1680510793886,1.101,1815.5,1815.4,3.2078]
[1680510794198,1.101,1815.6,1815.4,3.2078]
[1680510795691,1.101,1815.8,1815.4,4.3088]
[1680510795888,1.101,1815.8,1815.6,3.2078]
[1680510797591,1.094,1816.0,1815.7,1.101]
[1680510797895,1.094,1816.0,1815.8,3.2078]
[1680510798901,1.094,1816.0,1815.7,1.101]
[1680510799092,1.094,1816.0,1815.7,4.3088]
[1680510799697,1.101,1815.8,1815.6,3.2078]
[1680510800795,1.094,1816.0,1815.7,1.101]
[1680510800995,1.094,1816.0,1815.8,3.2078]
[1680510801296,1.1,1815.9,1815.5,4.52401029]
[1680510801493,1.0,1815.8,1815.5,4.52401029]
[1680510801793,1.094,1816.0,1815.7,4.3038]
[1680510802299,1.094,1816.0,1815.9,3.2078]
[1680510802595,0.55183047,1816.1,1815.9,3.2078]
[1680510802899,1.095,1816.2,1815.9,3.2078]
[1680510803191,1.095,1816.2,1815.9,3.20068598]
[1680510803397,1.095,1816.2,1815.9,3.2078]
[1680510803994,1.095,1816.2,1816.1,3.2078]
[1680510805698,1.63632465,1816.2,1816.1,3.2078]
[1680510806296,0.54132465,1816.2,1816.1,3.2078]
[1680510806496,1.094,1816.4,1816.1,3.2078]
[1680510806690,1.094,1816.4,1816.3,3.2078]
[1680510807099,1.1,1816.4,1816.3,3.2078]
[1680510807402,1.61222854,1816.6,1816.3,5.3918]
[1680510807591,0.55386268,1816.8,1816.5,9.8188]
[1680510807898,0.15,1817.0,1816.7,3.2078]
[1680510808096,0.15,1817.0,1816.8,3.2078]
[1680510808097,1.101,1816.9,1816.8,3.2078]
[1680510808401,0.15,1817.0,1816.8,4.3088]
[1680510808600,0.15,1817.0,1816.8,3.2078]
[1680510808797,0.15,1817.0,1816.5,3.2078]
[1680510809099,0.15,1817.0,1816.4,1.0]
[1680510809100,1.1,1816.7,1816.3,6.611]
[1680510809288,1.1,1816.7,1816.6,3.2078]
[1680510809491,2.201,1816.7,1816.3,3.2078]
[1680510809696,2.201,1816.7,1816.1,3.2078]
[1680510809697,1.101,1816.4,1816.1,3.2078]
[1680510810099,1.101,1816.4,1816.3,3.2078]
[1680510810797,1.101,1816.4,1816.3,3.53935588]
[1680510813999,1.72859075,1816.8,1816.3,3.53935588]
[1680510814198,6.0489693,1817.0,1816.7,3.2078]
[1680510814199,4.47216273,1817.0,1816.7,3.2078]
[1680510814413,1.87859075,1817.0,1816.5,3.2078]
[1680510814605,4.75417627,1816.9,1816.5,3.2078]
[1680510814803,1.101,1816.7,1816.6,0.47930609]
[1680510815202,1.101,1816.9,1816.6,0.47930609]
[1680510815398,1.101,1816.9,1816.8,3.2078]
[1680510815999,1.094,1816.8,1816.6,0.47930609]
[1680510816203,1.101,1816.7,1816.4,3.2078]
[1680510816404,1.095,1816.5,1816.4,3.2078]
[1680510819712,1.094,1816.4,1816.2,3.2078]
[1680510819903,1.094,1816.4,1816.0,3.2078]
[1680510820105,8.2078,1816.7,1816.0,3.2078]
[1680510820405,1.101,1816.2,1816.0,3.2078]
[1680510820603,1.101,1816.2,1816.1,0.28232913]
[1680510821109,1.0,1816.6,1816.1,0.28232913]
[1680510821308,1.0,1816.6,1816.0,3.2078]
[1680510821497,1.095,1816.2,1816.0,3.2078]
[1680510821697,1.101,1816.1,1816.0,3.2078]
[1680510823608,1.0,1816.4,1816.0,3.2078]
[1680510824113,1.1,1816.1,1816.0,3.2078]
[1680510826008,3.2078,1815.6,1814.8,1.14467289]
[1680510826207,5.0,1815.9,1814.7,0.56916754]
[1680510826208,3.2078,1814.9,1814.7,0.56916754]
[1680510826411,3.2078,1814.9,1814.1,1.10474128]
[1680510826412,2.195,1814.8,1814.1,1.10474128]
[1680510826609,1.101,1814.2,1814.0,0.85330463]
[1680510826813,1.101,1814.2,1814.1,0.56060527]
[1680510827008,2.05011878,1814.2,1814.1,1.4139099]
[1680510827308,2.05011878,1814.2,1814.0,0.56060527]
[1680510827515,1.101,1814.1,1814.0,0.56060527]
[1680510827811,1.101,1814.4,1814.0,4.86640527]
[1680510828019,1.101,1814.6,1814.2,4.3038]
[1680510828316,1.101,1814.8,1814.4,4.3088]
[1680510828512,1.101,1814.8,1814.6,3.2078]
[1680510829018,1.101,1814.8,1814.6,8.2078]
[1680510829418,1.101,1814.8,1814.6,5.0]
[1680510829916,1.101,1814.8,1814.4,1.101]
[1680510830424,1.101,1814.8,1814.5,3.2078]
[1680510830607,1.101,1814.8,1814.4,1.101]
[1680510830922,1.101,1814.8,1814.5,3.2078]
[1680510831116,1.101,1814.8,1814.6,5.0]
[1680510831711,1.101,1815.0,1814.6,6.101]
[1680510832020,1.101,1815.0,1814.5,3.2078]
[1680510832021,1.101,1815.1,1814.7,4.3058]
[1680510832214,5.4088,1815.2,1814.8,1.0]
[1680510832411,3.2078,1815.2,1814.9,5.4088]
[1680510832813,5.4028,1815.4,1814.9,5.4088]
[1680510833513,2.203,1815.3,1814.8,2.203]
[1680510833817,1.0,1815.5,1814.4,5.4108]
[1680510833818,2.181,1814.9,1814.4,5.4108]
[1680510834013,3.40559196,1814.8,1814.4,2.203]